Cogmind - Beta 13 @@@ ROGUE MODE // 2024.04.02 @ 21:51:45 Player: zsh Result: Destroyed by as-15965 with Assembled Blade Performance ------------- Evolutions (1) 500 Regions Visited (3) 600 Robots Destroyed (24) 120 Value Destroyed (443) 443 Prototype IDs (0) 0 Alien Tech Used (0) 0 Bonus (0) 0 TOTAL SCORE: 1663 Bonus ------- None Cogmind --------- Core Integrity 0/400 Matter 269/300 Energy 87/100 System Corruption 0% Temperature Cool (0) Movement Core (50) Location -9/Mines Parts ------- > --- POWER (2) -------- (None) > --- PROPULSION (2) --- (None) > --- UTILITY (3) ------ Improved Targeting Computer Improved Light Armor Plating > --- WEAPON (2) ------- (None) > --- INVENTORY (5) ---- (None) Peak State ------------ > --- POWER ------------ Ion Engine Reinforced Ion Engine > --- PROPULSION ------- Light Treads Light Treads > --- UTILITY ---------- Improved Terrain Scanner Improved Terrain Scanner Improved Targeting Computer > --- WEAPON ----------- Small Laser Beam Cannon > --- INVENTORY -------- Ion Engine Assault Rifle Mining Laser Mining Claw [Rating: 15] Favorites ----------- Power Ion Engine Engine Ion Engine Propulsion Light Treads Treads Light Treads Flight Unit Flight Unit Utility Improved Terrain Scanner Device Improved Terrain Scanner Processor Improved Targeting Computer Protection Improved Light Armor Plating Weapon Assault Rifle Energy Gun Small Laser Energy Cannon Beam Cannon Ballistic Gun Assault Rifle Launcher Grenade Launcher Special Weapon Mining Laser Slashing Weapon Mining Claw Build | -11 -10 -9 -9 ------- Run | Yrd Mat Mat Min Slots Evolved 2 | . . 2 . Power 1 | . . 1 . Propulsion . | . . . . Utility 1 | . . 1 . Weapon . | . . . . Parts Attached 24 | 7 4 7 6 Power 4 | 1 . 2 1 Engine 4 | 1 . 2 1 Core . | . . . . Reactor . | . . . . Propulsion 5 | 2 1 1 1 Treads 4 | 2 1 1 . Leg . | . . . . Wheel . | . . . . Hover . | . . . . Flight 1 | . . . 1 Utility 4 | 2 . 1 1 Device 2 | 2 . . . Storage . | . . . . Processor 1 | . . 1 . Hackware . | . . . . Protection 1 | . . . 1 Artifact . | . . . . Weapon 11 | 2 3 3 3 Energy Gun 1 | 1 . . . Energy Cannon 1 | . . 1 . Ballistic Gun 3 | 1 1 . 1 Ballistic Cannon . | . . . . Launcher 2 | . 2 . . Special Weapon 2 | . . 1 1 Impact Weapon . | . . . . Slashing Weapon 2 | . . 1 1 Piercing Weapon . | . . . . Special Melee Weapon . | . . . . Unidentified Prototypes . | . . . . Parts Lost 14 | . 1 5 8 Power 4 | . . 2 2 Propulsion 3 | . . 1 2 Utility 2 | . . 1 1 Weapon 5 | . 1 1 3 Highest Loss Streak 6 | . 1 4 6 To Critical Strikes . | . . . . Average Slot Usage (%) 83 | . 100 95 63 Engine 18 | . 14 21 21 Treads 14 | . 28 20 . Flight 4 | . . . 9 Device 14 | . 28 22 . Processor 7 | . . 10 11 Energy Gun 6 | . 14 9 . Energy Cannon 6 | . . 8 10 Ballistic Gun 8 | . 9 1 10 Launcher 1 | . 4 . . Naked Turns . | . . . . Heaviest Build 21 | 8 9 21 21 Greatest Support 40 | 40 40 40 20 Greatest Overweight (x) 6 | . . . 6 Average Overweight (x) 1 | . . . 3 Largest Inventory Capacity 5 | 5 5 5 5 Average Capacity 5 | 5 5 5 5 Most Carried 5 | 2 5 5 3 Average Carried 2 | . 3 4 1 Final Capacity 5 | 5 5 5 5 Final Carried 5 | 2 5 4 . Class Distribution -------------------- 100% | Mutant Dominant Class ---------------- Mutant | -10/Materials Mutant | -9/Materials Mutant | -9/Mines Resources | -11 -10 -9 -9 ----------- Run | Yrd Mat Mat Min Matter Collected 547 | 309 123 87 28 Remotely . | . . . . Salvage Created 567 | 155 209 137 66 Parts 41 | 13 12 11 5 Haulers Intercepted . | . . . . Recyclers Shooed . | . . . . Parts Field Recycled . | . . . . Retrieved Matter . | . . . . Parts Self-Destructed . | . . . . Prevented . | . . . . Kills | -11 -10 -9 -9 ------- Run | Yrd Mat Mat Min Combat Hostiles Destroyed 16 | . 7 4 5 Melee 1 | . . . 1 Guns 10 | . 5 2 3 Cannons 3 | . . 2 1 AOE 2 | . 2 . . Classes Destroyed 9 | 3 3 2 1 Worker 2 | 2 . . . Tunneler 3 | 3 . . . Recycler 1 | 1 . . . Operator 1 | . . 1 . Watcher 1 | . 1 . . Swarmer 9 | . 3 2 4 Grunt 5 | . 4 1 . Brawler 1 | . . 1 . Demolisher 1 | . . . 1 Best Kill Streak 6 | 4 6 4 4 Combat Bots Only 5 | . 5 4 4 Max Kills in Single Turn 2 | 1 2 1 1 Gunslinging . | . . . . Exploded 1 | . 1 . . Melee 1 | . . . 1 Uniques/NPCs Destroyed . | . . . . Combat | -11 -10 -9 -9 -------- Run | Yrd Mat Mat Min Hostile Shots Fired 170 | . 48 82 40 Missed 47 | . 14 25 8 Damage Taken 1656 | . 348 618 690 Core 507 | . 103 117 287 Absorbed by Shields . | . . . . Regen/Repaired (Parts) 125 | . . 125 . Core Remaining (%) 79 | 100 58 . . Volleys Fired 69 | 13 26 17 13 Largest 2 | 2 2 2 2 Hottest 100 | 60 70 100 80 Shots Fired 123 | 26 46 31 20 Gun 96 | 26 41 16 13 Cannon 21 | . . 14 7 Launcher 5 | . 5 . . Special 1 | . . 1 . Kinetic 46 | 13 18 2 13 Thermal 72 | 13 23 29 7 Explosive 5 | . 5 . . Electromagnetic . | . . . . Robot Hit Streak 7 | 4 5 7 7 Robot Miss Streak 10 | 2 2 9 10 Penetration Max . | . . . . Secondary Targets 1 | . 1 . . Max Gunslinging Chain 1 | . 1 . . Shots Hit Robots 71 | 14 27 14 16 Core Hits 39 | 7 17 7 8 Critical Kills . | . . . . Critical Parts Destroyed . | . . . . Critical Strikes . | . . . . Melee Attacks 2 | . . . 2 Impact . | . . . . Slashing 2 | . . . 2 Piercing . | . . . . Sneak Attacks . | . . . . Combat Hostiles . | . . . . Follow-up Attacks . | . . . . Damage Inflicted 1222 | 177 615 196 234 Guns 751 | 177 349 93 132 Cannons 154 | . . 103 51 Explosions 266 | . 266 . . Melee 51 | . . . 51 Ramming . | . . . . Kinetic 417 | 99 158 28 132 Thermal 488 | 78 191 168 51 Explosive 266 | . 266 . . Electromagnetic . | . . . . Impact . | . . . . Slashing 51 | . . . 51 Piercing . | . . . . Highest Corruption . | . . . . Average Corruption . | . . . . Corruption Purged . | . . . . Corruption Blocked . | . . . . Overload Shots . | . . . . Overflow Damage 2 | . 2 . . Projectiles . | . . . . Explosions 2 | . 2 . . Melee . | . . . . Knockbacks . | . . . . Impact . | . . . . Kinetic . | . . . . Secondary . | . . . . Self-Inflicted Damage . | . . . . Shots . | . . . . Rammed . | . . . . Targets Rammed . | . . . . Kicked . | . . . . Crushed . | . . . . Highest Temperature 376 | . 102 376 216 Average Temperature 97 | . 36 134 92 Received Heat Transfer 366 | . 129 237 . Effects 5 | . . 2 3 Shutdowns 1 | . . 1 . Interference 3 | . . . 3 Damage (minor) 1 | . . 1 . Siege Activations . | . . . . Robots Corrupted . | . . . . Combat Hostiles . | . . . . Parts Fried . | . . . . Impact Corruptions . | . . . . Robots Melted . | . . . . Combat Hostiles . | . . . . Parts Melted 1 | . 1 . . Heat Transferred 1083 | 175 425 372 111 Parts Sabotaged . | . . . . Parts Stolen . | . . . . Parts Stripped . | . . . . Power Chain Reactions . | . . . . Alert | -11 -10 -9 -9 ------- Run | Yrd Mat Mat Min Peak Influence 265 | 30 265 156 126 Initial 56 | . 19 27 56 Average 92 | 11 130 102 80 Maximum Alert Level 1 | . 1 . . Low Security (%) 92 | 100 72 100 100 Level 1 7 | . 27 . . Level 2 . | . . . . Level 3 . | . . . . Level 4 . | . . . . Level 5 . | . . . . High Security . | . . . . Max Security . | . . . . Squads Dispatched 2 | . 1 1 . Investigation . | . . . . Extermination . | . . . . Reinforcement 2 | . 1 1 . Assault . | . . . . Garrison . | . . . . Intercept . | . . . . Searches Triggered . | . . . . Construction Impeded . | . . . . Haulers Reinforced . | . . . . Active Scanning Responses . | . . . . Cargo Convoy Interrupts . | . . . . Stealth | -11 -10 -9 -9 --------- Run | Yrd Mat Mat Min Distress Signals 1 | . 1 . . Communications Jammed . | . . . . Distress Signals . | . . . . Times Spotted 40 | . 12 14 14 Peak Tracking Total 8 | . 6 8 6 Tactical Retreats . | . . . . Traps | -11 -10 -9 -9 ------- Run | Yrd Mat Mat Min Traps Triggered 1 | . 1 . . Indirectly . | . . . . Trap Hack Attempts . | . . . . Triggered . | . . . . Disarmed . | . . . . Reprogrammed . | . . . . Reused . | . . . . Traps Extracted . | . . . . Installed . | . . . . Triggered . | . . . . Machines | -11 -10 -9 -9 ---------- Run | Yrd Mat Mat Min Machines Disabled 2 | . 2 . . Max in Single Turn 2 | . 2 . . Machines Repaired . | . . . . Machines Dismantled . | . . . . Machines Sabotaged . | . . . . Overloaded Fab Kills . | . . . . Hacking | -11 -10 -9 -9 --------- Run | Yrd Mat Mat Min Machines Accessed 2 | . 1 1 . Terminals 1 | . 1 . . Fabricators . | . . . . Repair Stations 1 | . . 1 . Recycling Units . | . . . . Scanalyzers . | . . . . Garrison Access . | . . . . Total Hacks 6 | . 2 4 . Successful 3 | . 1 2 . Failed 3 | . 1 2 . Catastrophic . | . . . . Database Lockouts . | . . . . Manual . | . . . . Terminals 2 | . 2 . . Fabricators . | . . . . Repair Stations 4 | . . 4 . Recycling Units . | . . . . Scanalyzers . | . . . . Garrison Access . | . . . . Terminal Hacks 1 | . 1 . . Hauler Manifests 1 | . 1 . . Fabricator Hacks . | . . . . Repair Station Hacks 2 | . . 2 . Scan Component 1 | . . 1 . Repair 1 | . . 1 . Recycling Unit Hacks . | . . . . Scanalyzer . | . . . . Garrison Access Hacks . | . . . . Unauthorized Hacks . | . . . . Terminals . | . . . . Fabricators . | . . . . Repair Stations . | . . . . Recycling Units . | . . . . Scanalyzers . | . . . . Garrison Access . | . . . . Data Cores Recovered 1 | . . 1 . Used . | . . . . Hacking Detections 1 | . 1 . . Full Trace Events . | . . . . Feedback Events . | . . . . Feedback Blocked . | . . . . Robot Schematics Acquired . | . . . . Robots Built . | . . . . Authchips . | . . . . Time . | . . . . Total Robot Build Rating . | . . . . Part Schematics Acquired . | . . . . Parts Built . | . . . . Authchips . | . . . . Time . | . . . . Total Part Build Rating . | . . . . Parts Repaired 1 | . . 1 . Time 26 | . . 26 . Parts Recycled . | . . . . Recycled Matter . | . . . . Retrieved Matter . | . . . . Retrieved Components . | . . . . Parts Scanalyzed . | . . . . Part Schematics Acquired . | . . . . Parts Damaged . | . . . . Bothacking | -11 -10 -9 -9 ------------ Run | Yrd Mat Mat Min Used RIF Installer . | . . . . Robots Hacked . | . . . . Non-combat . | . . . . Combat . | . . . . Robot Hacks Applied . | . . . . Relay Couplers Released . | . . . . Fabnet Peak Effective % . | . . . . Robots Rewired . | . . . . Allies Hacked . | . . . . Hacks Repelled . | . . . . Allies | -11 -10 -9 -9 -------- Run | Yrd Mat Mat Min Total Allies . | . . . . Largest Group . | . . . . Highest-Rated Group . | . . . . Highest-Rated Ally . | . . . . Total Orders . | . . . . Ally Attacks . | . . . . Total Damage . | . . . . Kills . | . . . . Allies Corrupted . | . . . . Allies Melted . | . . . . Intel | -11 -10 -9 -9 ------- Run | Yrd Mat Mat Min Robot Analysis Total . | . . . . Derelict Logs Recovered 2 | . . . 2 Drone Launches . | . . . . Drone Recoveries . | . . . . Exploration | -11 -10 -9 -9 ------------- Run | Yrd Mat Mat Min Turns Passed 1619 | 163 456 381 619 Spaces Moved 640 | 71 226 179 164 Core 14 | 2 . . 12 Treads 475 | 69 226 179 1 Legs . | . . . . Wheels . | . . . . Hover . | . . . . Flight 151 | . . . 151 Fastest Speed 50 | 50 160 160 50 Average Speed 208 | 156 160 160 349 Slowest Speed 360 | 160 160 160 360 Overloaded Moves . | . . . . Propulsion Burnouts . | . . . . Robots Hopped . | . . . . Cave-ins Triggered . | . . . . Exploration Rate (%) 28 | 4 54 20 35 Regions Visited 3 Branch Regions 1 Pre-discovered Areas . | . . . . Known Exits Taken . | . . . . Unknown Exits Taken 3 | 1 1 1 . Scrap Searched . | . . . . Spaces Dug 1 | . . 1 . Terrain Destroyed 25 | . 24 1 . Melee . | . . . . Projectile 1 | . . 1 . AOE 24 | . 24 . . Terrain Rammed . | . . . . Walls Destroyed . | . . . . Machines Disabled . | . . . . Actions | -11 -10 -9 -9 --------- Run | Yrd Mat Mat Min Total 793 | 94 274 240 185 Wait 48 | . 13 35 . Move 637 | 70 225 178 164 Hop . | . . . . Pick Up 8 | 3 5 . . Fast Attach 15 | 7 2 4 2 Attach 8 | . 1 3 4 Detach 2 | . . 2 . Swap 1 | . 1 . . Drop 3 | 1 1 1 . Fire 69 | 13 26 17 13 Melee 2 | . . . 2 Ram . | . . . . Kick . | . . . . Crush . | . . . . Escape Stasis . | . . . . Rewire . | . . . . Trap . | . . . . Miscellaneous . | . . . . Route ------- -11/Scrapyard -10/Materials (discovered 2 exits: *Mat / [*Min]) -9/Materials -9/Mines History --------- Turn | Location | Event 71 | -11/Scrapyard | Discovered new exit (range 15) 164 | -11/Scrapyard | Entered Materials 304 | -10/Materials | Build established: Mutant 365 | -10/Materials | Discovered new exit (range 12) 504 | -10/Materials | Discovered new exit (range 12) 620 | -10/Materials | Entered another Materials area 620 | -9/Materials | Evolved 2 slots: Power x1, Utility x1 816 | -9/Materials | Repaired Lgt. Treads 844 | -9/Materials | Discovered new exit (range 14) 1001 | -9/Materials | Entered Mines 1051 | -9/Mines | Lost 6 parts (1p2n2u1w) 1212 | -9/Mines | Learned location of 1 exit from Materials 1573 | -9/Mines | Assembled infested the area 1601 | -9/Mines | Core integrity fell below 50% 1617 | -9/Mines | Core integrity fell below 20% 1620 | -9/Mines | Destroyed by as-15965 with Assembled Blade Last Messages --------------- as-17065 destroyed. K-01 Serf collects debris. The unstable cave ceiling collapses. U-05 Engineer lays Concrete. Destroyed Shock Absorption System. U-05 Engineer builds a Wall. K-01 Serf collects debris. Assault Rifle destroyed. Rnf. Ion Engine destroyed. U-05 Engineer destroyed. Mining Laser destroyed. K-01 Serf collects debris. D-53 Grenadier destroyed. as-61274 sneak attacks. K-01 Serf destroyed. The unstable cave ceiling collapses. Acquired Imp. Light Armor Plating. The unstable cave ceiling collapses. Mining Claw severed. R-06 Scavenger destroyed. Map ----- +----------------------------------------------------+ | ???????????# ## ???????????????????????????? | | ???????????## #####???????????????????????????? | | ????????????## #???????????????????????????????? | | ????????????## #???????????????????????????????? | | ???????????## ##???????????????????????????????? | | ???????????# ##????????????????????????????????? | | ???????????# #?????????????????????????????????? | | ???????????## ##?????????????????????????????????? | | ????????????# #??????????????????????????????????? | | ????????????# #??????????????????????????????????? | | ????????????# #??????????????????????????????????? | | ????????????# ######?????????????????????????????? | | ????????????# #??###????????????????????????? | | ????????????###### #?## ##??????????????????????? | | ?????????????????# #?# ##?????????????????????? | | ?????????????????# ### ##????????????????????? | | ?????????????????# #? #????????????????????? | | ?????????????????# #? ##???????????????????? | | ?????????????????# #?# #???????????????????? | | ?????????????????# ### ###???#?????????????? | | ?????????????????# ### #? #?????????????? | | ?????????????????# = # ##????????????? | | ?????????????????# a ####?????????? | | ?????????????????#### # #????????? | | ???????????????????# a a % #???????????? | | ???????????????????# @a *%= ##???????????? | | ???????????????????## "a ! ####????????????? | | ???????????????????# =%##???????????????? | | ????????????????? ## ####????????????????? | | ??????????????? #?### %##???????????????????? | | ??????????????# #????## #????????????????????? | | ??????????????## ??????? ????????????????????? | | ???????????????## ???????? ???????????????????? | | ????????????????#????????? ??????????????????? | | ?????????????????????????? ??????????????????? | | ?????????????????????????? ?????????????????? | | ?????????????????????????? ??????????????????? | | ??????????????????????????? ###??????????????????? | | ??????????????????????????? ?????????????????????? | | ?????????????????????????????????????????????????? | | ?????????????????????????????????????????????????? | | ?????????????????????????????????????????????????? | | ?????????????????????????????????????????????????? | | ?????????????????????????????????????????????????? | | ?????????????????????????????????????????????????? | | ?????????????????????????????????????????????????? | | ?????????????????????????????????????????????????? | | ?????????????????????????????????????????????????? | | ?????????????????????????????????????????????????? | | | +----------------------------------------------------+ Best States ------------- Heat Dissipation 28 Energy Generation 17 Energy Capacity 415 Matter Stores 300 Matter Capacity 300 Sight Range 16 Terrain Scan Range 16 Terrain Scan Density 10 Armor Coverage 150 Evasion (%) 40 Targeting Accuracy 6 Recoil Reduction 2 Item Schematics ----------------- None Robot Schematics ------------------ None Fabricated ------------ Nothing Alien Tech Used ----------------- None Achievements -------------- None Challenges ------------ None Game ------ Seed WaveStorageMace Manual? 0 Play Time 00:12:07 Cumulative 2.4 hours Start 2024.04.02 @ 21:40:40 End 2024.04.02 @ 21:51:45 Sessions 1 Manual Loads 0 Difficulty Rogue Special Mode None Game No. 7 Rogue 7 Adventurer 0 Explorer 0 Win Type - Total 0 Types 0/0/0/0/0/0/0/0/0 Lore% 0 Gallery% 9 Achievement% 7 Wizard Run 0 Options --------- Layout 1 ASCII 0 Keyboard 0 Movement Arrows Keybinds 0 Fullscreen 1 Font 20/SmallcapsGlow Map View 28x22 Zoom Use 78% Tactical HUD 0 Map Filters NONE Filters NONE Steam 1 RUN: 0e4d1d20-4bfc-4055-a6fa-97df0c1144eb